[Event "Early-Titled-Tuesday-Blitz-September-26-2023"]
[Site "Chess.com"]
[Date "2023.09.26"]
[Round "1"]
[White "UK_23"]
[Black "FontVella8"]
[Result "0-1"]
[WhiteElo "2417"]
[BlackElo "2723"]
[TimeControl "180+1"]
[EndTime "8:07:59 PDT"]
[Termination "FontVella8 won by resignation"]

1. e4 {[%clk 0:02:58.4]} 1... c6 {[%clk 0:02:58.6]} 2. Nc3 {[%clk 0:02:57.7]}
2... d5 {[%clk 0:02:59.5]} 3. Nf3 {[%clk 0:02:57.7]} 3... dxe4 {[%clk
0:02:59.8]} 4. Nxe4 {[%clk 0:02:58.6]} 4... Nf6 {[%clk 0:03:00.3]} 5. Qe2 {[%clk
0:02:56.7]} 5... Nxe4 {[%clk 0:03:00.5]} 6. Qxe4 {[%clk 0:02:57.6]} 6... Qa5
{[%clk 0:03:01]} 7. b4 {[%clk 0:02:44.4]} 7... Qf5 {[%clk 0:03:00.7]} 8. Qe3
{[%clk 0:02:39.5]} 8... Qe6 {[%clk 0:03:00.7]} 9. Bb2 {[%clk 0:02:38.3]} 9...
Qxe3+ {[%clk 0:03:00.6]} 10. fxe3 {[%clk 0:02:39.2]} 10... f6 {[%clk 0:02:57.4]}
11. a3 {[%clk 0:02:31.9]} 11... a5 {[%clk 0:02:55.1]} 12. b5 {[%clk 0:02:15.3]}
12... cxb5 {[%clk 0:02:55.1]} 13. Bxb5+ {[%clk 0:02:15]} 13... Bd7 {[%clk
0:02:56]} 14. Bxd7+ {[%clk 0:02:07.5]} 14... Nxd7 {[%clk 0:02:56.3]} 15. O-O
{[%clk 0:02:06.7]} 15... Rc8 {[%clk 0:02:56.6]} 16. Rac1 {[%clk 0:02:05.3]}
16... Nc5 {[%clk 0:02:55.4]} 17. d3 {[%clk 0:01:29.3]} 17... e5 {[%clk 0:02:54]}
18. d4 {[%clk 0:01:05.9]} 18... Na4 {[%clk 0:02:53.6]} 19. Rb1 {[%clk 0:01:04]}
19... Rxc2 {[%clk 0:02:47.7]} 20. Rf2 {[%clk 0:01:01.2]} 20... Rxb2 {[%clk
0:02:27.3]} 21. Rfxb2 {[%clk 0:00:58.6]} 21... Nxb2 {[%clk 0:02:27.8]} 22. Rxb2
{[%clk 0:00:59.1]} 22... Bxa3 {[%clk 0:02:28]} 23. Rxb7 {[%clk 0:00:58.3]} 23...
O-O {[%clk 0:02:28.2]} 24. dxe5 {[%clk 0:00:58.8]} 24... Bc5 {[%clk 0:02:16.4]}
25. Kf1 {[%clk 0:00:43.9]} 25... fxe5 {[%clk 0:02:14.4]} 26. Ke2 {[%clk
0:00:43.7]} 26... a4 {[%clk 0:02:08.8]} 27. Rb5 {[%clk 0:00:39.4]} 27... Bd6
{[%clk 0:01:58.9]} 28. Ra5 {[%clk 0:00:36.9]} 28... a3 {[%clk 0:01:56.4]} 29. e4
{[%clk 0:00:37]} 29... Rb8 {[%clk 0:01:49.3]} 30. Kd3 {[%clk 0:00:35.3]} 30...
h6 {[%clk 0:01:30.9]} 31. Kc4 {[%clk 0:00:35.6]} 31... Rb2 {[%clk 0:01:30.5]}
32. Kd5 {[%clk 0:00:35.9]} 32... Bf8 {[%clk 0:01:30.7]} 33. Nxe5 {[%clk
0:00:31.8]} 33... Rxg2 {[%clk 0:01:26.1]} 34. Ra8 {[%clk 0:00:28.9]} 34... Rd2+
{[%clk 0:00:45.8]} 35. Ke6 {[%clk 0:00:29.1]} 35... a2 {[%clk 0:00:40.4]} 36. h4
{[%clk 0:00:19.4]} 36... h5 {[%clk 0:00:36.1]} 37. Kf5 {[%clk 0:00:16.7]} 37...
Kh7 {[%clk 0:00:33.7]} 38. Nf3 {[%clk 0:00:12.5]} 38... Rf2 {[%clk 0:00:31.2]}
39. Kf4 {[%clk 0:00:13]} 39... Be7 {[%clk 0:00:22.7]} 40. Ke3 {[%clk 0:00:12.2]}
40... Rb2 {[%clk 0:00:21]} 41. e5 {[%clk 0:00:10]} 41... Kg6 {[%clk 0:00:20.6]}
42. Ra6+ {[%clk 0:00:09.4]} 42... Kf5 {[%clk 0:00:19.6]} 43. Nd4+ {[%clk
0:00:09.3]} 43... Kg4 {[%clk 0:00:16.8]} 44. Rg6+ {[%clk 0:00:08.2]} 44... Kxh4
{[%clk 0:00:16.5]} 45. Nf5+ {[%clk 0:00:07.9]} 45... Kh3 {[%clk 0:00:16.2]} 46.
Ra6 {[%clk 0:00:06.6]} 46... Bg5+ {[%clk 0:00:12.9]} 47. Ke4 {[%clk 0:00:06.9]}
47... g6 {[%clk 0:00:11.7]} 48. Nd4 {[%clk 0:00:06.2]} 48... Be7 {[%clk
0:00:09]} 49. Nf3 {[%clk 0:00:06]} 49... g5 {[%clk 0:00:09]} 50. e6 {[%clk
0:00:05]} 50... g4 {[%clk 0:00:09.1]} 51. Nd4 {[%clk 0:00:05]} 51... g3 {[%clk
0:00:09]} 52. Nf5 {[%clk 0:00:05.1]} 52... g2 {[%clk 0:00:09.1]} 53. Nxe7 {[%clk
0:00:02.5]} 53... g1=Q {[%clk 0:00:09.3]} 54. Kf5 {[%clk 0:00:02.7]} 54... Qf1+
{[%clk 0:00:09.5]} 55. Kg6 {[%clk 0:00:03.1]} 55... Qxa6 {[%clk 0:00:10.1]} 0-1

[Event "Early-Titled-Tuesday-Blitz-September-26-2023"]
[Site "Chess.com"]
[Date "2023.09.26"]
[Round "1"]
[White "ferdipy"]
[Black "Zavgorodniy_Sergiy"]
[Result "0-1"]
[WhiteElo "2261"]
[BlackElo "2596"]
[TimeControl "180+1"]
[EndTime "8:08:04 PDT"]
[Termination "Zavgorodniy_Sergiy won by resignation"]

1. e4 {[%clk 0:02:59.7]} 1... e5 {[%clk 0:03:00]} 2. Nf3 {[%clk 0:02:58.7]} 2...
d6 {[%clk 0:02:56.9]} 3. Bc4 {[%clk 0:02:58.5]} 3... Be7 {[%clk 0:02:55.9]} 4.
c3 {[%clk 0:02:57.8]} 4... Nf6 {[%clk 0:02:56]} 5. d3 {[%clk 0:02:58]} 5... O-O
{[%clk 0:02:56.5]} 6. O-O {[%clk 0:02:58.4]} 6... c6 {[%clk 0:02:54.5]} 7. h3
{[%clk 0:02:58.2]} 7... d5 {[%clk 0:02:53]} 8. exd5 {[%clk 0:02:56.4]} 8... cxd5
{[%clk 0:02:53.9]} 9. Bb3 {[%clk 0:02:56]} 9... Nc6 {[%clk 0:02:53.1]} 10. Bg5
{[%clk 0:02:54.5]} 10... h6 {[%clk 0:02:50.8]} 11. Bh4 {[%clk 0:02:54.3]} 11...
Be6 {[%clk 0:02:43.1]} 12. Bg3 {[%clk 0:02:51.1]} 12... Bd6 {[%clk 0:02:40.1]}
13. Nbd2 {[%clk 0:02:49.4]} 13... Re8 {[%clk 0:02:36.6]} 14. Re1 {[%clk
0:02:35.1]} 14... Bf5 {[%clk 0:02:36.5]} 15. Bc2 {[%clk 0:02:35.3]} 15... Qd7
{[%clk 0:02:33.2]} 16. Nh4 {[%clk 0:02:30.8]} 16... Bh7 {[%clk 0:02:32]} 17. Nf1
{[%clk 0:02:19]} 17... Rad8 {[%clk 0:02:18.6]} 18. Ne3 {[%clk 0:02:18.4]} 18...
d4 {[%clk 0:02:00.1]} 19. Ng4 {[%clk 0:02:15.6]} 19... Nxg4 {[%clk 0:01:46.3]}
20. hxg4 {[%clk 0:02:16.5]} 20... dxc3 {[%clk 0:01:40.5]} 21. bxc3 {[%clk
0:02:17.4]} 21... Bc5 {[%clk 0:01:40.7]} 22. Nf5 {[%clk 0:01:38.8]} 22... Bxf5
{[%clk 0:01:39.9]} 23. gxf5 {[%clk 0:01:37.2]} 23... Qxf5 {[%clk 0:01:40.2]} 24.
d4 {[%clk 0:01:35]} 24... Qg5 {[%clk 0:01:39.5]} 25. Qd3 {[%clk 0:01:30.2]}
25... g6 {[%clk 0:01:38.5]} 26. Qb5 {[%clk 0:01:29.4]} 26... Bb6 {[%clk
0:01:36.1]} 27. Bxe5 {[%clk 0:01:16.9]} 27... Nxe5 {[%clk 0:01:13.5]} 28. Rxe5
{[%clk 0:01:17.8]} 28... Rxe5 {[%clk 0:01:12.4]} 29. Qxe5 {[%clk 0:01:07.6]}
29... Qxe5 {[%clk 0:01:12.2]} 30. dxe5 {[%clk 0:01:08.5]} 30... Rd2 {[%clk
0:01:12.2]} 31. Bb3 {[%clk 0:00:56.9]} 31... Rxf2 {[%clk 0:01:11.6]} 32. Kh2
{[%clk 0:00:55.4]} 32... Bc7 {[%clk 0:01:07.1]} 33. Kg1 {[%clk 0:00:44.6]} 33...
Bb6 {[%clk 0:01:00.4]} 34. Kh2 {[%clk 0:00:44.5]} 34... Bc7 {[%clk 0:00:42.1]}
35. Kg1 {[%clk 0:00:44.2]} 35... Re2 {[%clk 0:00:42.8]} 36. Rf1 {[%clk
0:00:36.8]} 36... Bb6+ {[%clk 0:00:33.7]} 37. Kh1 {[%clk 0:00:36.7]} 37... Bf2
{[%clk 0:00:32.4]} 38. e6 {[%clk 0:00:32.7]} 38... fxe6 {[%clk 0:00:31.8]} 39.
Bxe6+ {[%clk 0:00:32.4]} 39... Rxe6 {[%clk 0:00:31.6]} 40. Rxf2 {[%clk
0:00:33.3]} 40... Rc6 {[%clk 0:00:30.3]} 41. Rf3 {[%clk 0:00:29.7]} 41... Ra6
{[%clk 0:00:28.5]} 42. Rf2 {[%clk 0:00:29.6]} 42... Ra3 {[%clk 0:00:28.4]} 43.
Rc2 {[%clk 0:00:30.2]} 43... Kf7 {[%clk 0:00:27.1]} 44. Kg1 {[%clk 0:00:30.1]}
44... Ke6 {[%clk 0:00:27.3]} 45. Kf2 {[%clk 0:00:31]} 45... Kd5 {[%clk
0:00:27.4]} 46. Ke3 {[%clk 0:00:31.9]} 46... Kc4 {[%clk 0:00:27.7]} 47. Kd2
{[%clk 0:00:32.4]} 47... Ra5 {[%clk 0:00:20.3]} 48. Rb2 {[%clk 0:00:31.6]} 48...
Rg5 {[%clk 0:00:20.3]} 49. Rb4+ {[%clk 0:00:29.5]} 49... Kc5 {[%clk 0:00:19.8]}
50. Rxb7 {[%clk 0:00:26.6]} 50... Rxg2+ {[%clk 0:00:19.1]} 51. Kd3 {[%clk
0:00:27.5]} 51... Rxa2 {[%clk 0:00:18.9]} 52. Rg7 {[%clk 0:00:28]} 52... Rg2
{[%clk 0:00:18]} 53. Rxa7 {[%clk 0:00:27.5]} 53... Rg3+ {[%clk 0:00:17.2]} 54.
Kd2 {[%clk 0:00:26.5]} 54... h5 {[%clk 0:00:16.8]} 55. Ra5+ {[%clk 0:00:25]}
55... Kc4 {[%clk 0:00:16]} 56. Ra4+ {[%clk 0:00:25]} 56... Kc5 {[%clk
0:00:15.1]} 57. Ra5+ {[%clk 0:00:25.2]} 57... Kb6 {[%clk 0:00:13.4]} 58. Re5
{[%clk 0:00:23.5]} 58... h4 {[%clk 0:00:13.6]} 59. c4 {[%clk 0:00:23.9]} 59...
h3 {[%clk 0:00:13.5]} 60. Re2 {[%clk 0:00:24.4]} 60... g5 {[%clk 0:00:11.1]} 61.
Ke1 {[%clk 0:00:23.8]} 61... g4 {[%clk 0:00:11.4]} 62. Kf2 {[%clk 0:00:24.1]}
62... Rg2+ {[%clk 0:00:11.5]} 63. Kf1 {[%clk 0:00:24.3]} 63... Rxe2 {[%clk
0:00:11.9]} 64. Kxe2 {[%clk 0:00:25.2]} 64... g3 {[%clk 0:00:12.1]} 0-1

[Event "Early-Titled-Tuesday-Blitz-September-26-2023"]
[Site "Chess.com"]
[Date "2023.09.26"]
[Round "1"]
[White "Staudenhocker43"]
[Black "MMAHDI2013"]
[Result "1/2-1/2"]
[WhiteElo "2573"]
[BlackElo "2229"]
[TimeControl "180+1"]
[EndTime "8:08:04 PDT"]
[Termination "Game drawn by repetition"]

1. c4 {[%clk 0:03:00.5]} 1... e6 {[%clk 0:02:40.1]} 2. Nc3 {[%clk 0:03:00]} 2...
d5 {[%clk 0:02:38.5]} 3. d4 {[%clk 0:02:59.9]} 3... Nf6 {[%clk 0:02:33.1]} 4.
cxd5 {[%clk 0:02:57.5]} 4... exd5 {[%clk 0:02:30.9]} 5. Bg5 {[%clk 0:02:56.2]}
5... Be7 {[%clk 0:02:29.5]} 6. Qc2 {[%clk 0:02:56.2]} 6... c6 {[%clk 0:02:22.3]}
7. e3 {[%clk 0:02:53.8]} 7... O-O {[%clk 0:02:22.5]} 8. Bd3 {[%clk 0:02:50.8]}
8... h6 {[%clk 0:02:23.1]} 9. Bh4 {[%clk 0:02:50.8]} 9... Ne8 {[%clk 0:02:23.7]}
10. Bxe7 {[%clk 0:02:47.8]} 10... Qxe7 {[%clk 0:02:24.6]} 11. Nf3 {[%clk
0:02:46.2]} 11... Nd6 {[%clk 0:02:24.5]} 12. O-O {[%clk 0:02:45.6]} 12... Qf6
{[%clk 0:02:24.5]} 13. Ne5 {[%clk 0:02:41.1]} 13... Bf5 {[%clk 0:02:19.3]} 14.
b4 {[%clk 0:02:32.3]} 14... Bxd3 {[%clk 0:02:15.9]} 15. Qxd3 {[%clk 0:02:31.9]}
15... a6 {[%clk 0:02:16.3]} 16. a4 {[%clk 0:02:31.6]} 16... Qe7 {[%clk
0:01:03.7]} 17. b5 {[%clk 0:02:21.8]} 17... Rc8 {[%clk 0:00:57.4]} 18. bxc6
{[%clk 0:02:19.9]} 18... bxc6 {[%clk 0:00:55.6]} 19. Rfb1 {[%clk 0:02:13.8]}
19... Nd7 {[%clk 0:00:54.8]} 20. Nxd7 {[%clk 0:02:10.3]} 20... Qxd7 {[%clk
0:00:55.7]} 21. Rb3 {[%clk 0:01:47.2]} 21... a5 {[%clk 0:00:45.6]} 22. Rab1
{[%clk 0:01:44.5]} 22... Qc7 {[%clk 0:00:45.3]} 23. e4 {[%clk 0:01:31.1]} 23...
dxe4 {[%clk 0:00:43.3]} 24. Nxe4 {[%clk 0:01:32]} 24... Nxe4 {[%clk 0:00:43.7]}
25. Qxe4 {[%clk 0:01:31]} 25... Rab8 {[%clk 0:00:43.8]} 26. g3 {[%clk
0:01:26.7]} 26... Rxb3 {[%clk 0:00:39.7]} 27. Rxb3 {[%clk 0:01:27.6]} 27... Qd7
{[%clk 0:00:40.4]} 28. Rc3 {[%clk 0:01:23.5]} 28... Rd8 {[%clk 0:00:38.2]} 29.
Rc4 {[%clk 0:01:15.6]} 29... Qd5 {[%clk 0:00:38.4]} 30. Qxd5 {[%clk 0:01:00.3]}
30... Rxd5 {[%clk 0:00:39.3]} 31. Kf1 {[%clk 0:01:00.1]} 31... Kf8 {[%clk
0:00:39.5]} 32. Ke2 {[%clk 0:00:59.9]} 32... Ke7 {[%clk 0:00:40.2]} 33. Ke3
{[%clk 0:00:56.5]} 33... Kd6 {[%clk 0:00:39.8]} 34. Rc3 {[%clk 0:00:43.7]} 34...
c5 {[%clk 0:00:39.5]} 35. dxc5+ {[%clk 0:00:40.6]} 35... Rxc5 {[%clk 0:00:40.4]}
36. Rd3+ {[%clk 0:00:39.2]} 36... Kc7 {[%clk 0:00:37]} 37. Rd4 {[%clk 0:00:36]}
37... Rc1 {[%clk 0:00:35.5]} 38. Rd5 {[%clk 0:00:28.9]} 38... Kb6 {[%clk
0:00:35.6]} 39. Rd6+ {[%clk 0:00:24]} 39... Rc6 {[%clk 0:00:35.6]} 40. Rd7
{[%clk 0:00:20.6]} 40... Rc7 {[%clk 0:00:35.5]} 41. Rxc7 {[%clk 0:00:20.4]}
41... Kxc7 {[%clk 0:00:35.3]} 42. Kd4 {[%clk 0:00:20.7]} 42... Kd6 {[%clk
0:00:33.8]} 43. Kc4 {[%clk 0:00:20.9]} 43... Kc6 {[%clk 0:00:34.5]} 44. f3
{[%clk 0:00:19.5]} 44... f6 {[%clk 0:00:26.2]} 45. h3 {[%clk 0:00:17]} 45... g6
{[%clk 0:00:25.2]} 46. f4 {[%clk 0:00:10]} 46... f5 {[%clk 0:00:23.7]} 47. Kd4
{[%clk 0:00:07.7]} 47... Kd6 {[%clk 0:00:23.3]} 48. Kc4 {[%clk 0:00:06.3]} 48...
Kc6 {[%clk 0:00:20.6]} 49. Kd4 {[%clk 0:00:06.4]} 49... Kd6 {[%clk 0:00:20.8]}
50. h4 {[%clk 0:00:06.2]} 50... h5 {[%clk 0:00:20.8]} 51. Kc4 {[%clk 0:00:06.4]}
51... Kc6 {[%clk 0:00:21.2]} 52. Kd4 {[%clk 0:00:06.8]} 52... Kd6 {[%clk
0:00:21.5]} 53. Kc4 {[%clk 0:00:06.9]} 53... Kc6 {[%clk 0:00:22.1]} 54. Kd4
{[%clk 0:00:07.4]} 54... Kd6 {[%clk 0:00:22.7]} 1/2-1/2

[Event "Early-Titled-Tuesday-Blitz-September-26-2023"]
[Site "Chess.com"]
[Date "2023.09.26"]
[Round "1"]
[White "santosalberto1987"]
[Black "platy3"]
[Result "0-1"]
[WhiteElo "2497"]
[BlackElo "2879"]
[TimeControl "180+1"]
[EndTime "8:08:10 PDT"]
[Termination "platy3 won on time"]

1. e4 {[%clk 0:03:00.9]} 1... c5 {[%clk 0:02:58.8]} 2. Nf3 {[%clk 0:03:01]} 2...
d6 {[%clk 0:02:59.3]} 3. Bb5+ {[%clk 0:03:00.6]} 3... Nd7 {[%clk 0:02:58.8]} 4.
d4 {[%clk 0:03:00.6]} 4... cxd4 {[%clk 0:02:57.8]} 5. Qxd4 {[%clk 0:03:01.5]}
5... a6 {[%clk 0:02:57.4]} 6. Bxd7+ {[%clk 0:03:01.9]} 6... Bxd7 {[%clk
0:02:58.2]} 7. Nc3 {[%clk 0:03:02.5]} 7... e5 {[%clk 0:02:54.2]} 8. Qd3 {[%clk
0:03:02.3]} 8... h6 {[%clk 0:02:54.9]} 9. Nd2 {[%clk 0:02:59.4]} 9... Rc8 {[%clk
0:02:47.5]} 10. Nc4 {[%clk 0:02:58.9]} 10... Be6 {[%clk 0:02:47.9]} 11. Ne3
{[%clk 0:02:58.9]} 11... Nf6 {[%clk 0:02:45.9]} 12. Ncd5 {[%clk 0:02:57.6]}
12... Be7 {[%clk 0:02:37.6]} 13. O-O {[%clk 0:02:52.3]} 13... O-O {[%clk
0:02:34.1]} 14. Rd1 {[%clk 0:02:48.1]} 14... Rc6 {[%clk 0:01:54.7]} 15. c4
{[%clk 0:02:36.3]} 15... Qd7 {[%clk 0:01:41]} 16. b3 {[%clk 0:02:33.2]} 16...
Bxd5 {[%clk 0:01:34]} 17. Nxd5 {[%clk 0:02:28.5]} 17... Nxd5 {[%clk 0:01:33.1]}
18. Qxd5 {[%clk 0:02:26]} 18... Qe6 {[%clk 0:01:31.5]} 19. Ba3 {[%clk
0:02:22.4]} 19... Rfc8 {[%clk 0:01:28.2]} 20. Rd2 {[%clk 0:02:18.5]} 20... b5
{[%clk 0:01:16.7]} 21. cxb5 {[%clk 0:02:09.5]} 21... axb5 {[%clk 0:01:16.6]} 22.
Qxb5 {[%clk 0:02:05]} 22... Qg6 {[%clk 0:01:06.4]} 23. Qd5 {[%clk 0:01:53.1]}
23... Bg5 {[%clk 0:01:05.2]} 24. Rdd1 {[%clk 0:01:48.9]} 24... Ra6 {[%clk
0:00:57.2]} 25. Bb4 {[%clk 0:01:33.1]} 25... Rc2 {[%clk 0:00:54.8]} 26. a4
{[%clk 0:01:13.2]} 26... Be3 {[%clk 0:00:51.2]} 27. Be1 {[%clk 0:01:07.3]} 27...
Bd4 {[%clk 0:00:38.4]} 28. Rac1 {[%clk 0:01:04.6]} 28... Rb2 {[%clk 0:00:36.7]}
29. Qb7 {[%clk 0:00:54.2]} 29... Rb6 {[%clk 0:00:34.4]} 30. Qc8+ {[%clk
0:00:32.4]} 30... Kh7 {[%clk 0:00:34.4]} 31. Qf5 {[%clk 0:00:30.4]} 31... R6xb3
{[%clk 0:00:32.1]} 32. Qxg6+ {[%clk 0:00:29.4]} 32... Kxg6 {[%clk 0:00:24.3]}
33. a5 {[%clk 0:00:24.8]} 33... Kf6 {[%clk 0:00:20]} 34. g3 {[%clk 0:00:19.1]}
34... Ra2 {[%clk 0:00:19.1]} 35. Rb1 {[%clk 0:00:18.1]} 35... Rxb1 {[%clk
0:00:16.7]} 36. Rxb1 {[%clk 0:00:19]} 36... Ke6 {[%clk 0:00:17.1]} 37. Kf1
{[%clk 0:00:18.7]} 37... g6 {[%clk 0:00:16.5]} 38. h4 {[%clk 0:00:18.6]} 38...
f5 {[%clk 0:00:16.8]} 39. Rd1 {[%clk 0:00:17.8]} 39... fxe4 {[%clk 0:00:16.4]}
40. Rd2 {[%clk 0:00:18.2]} 40... Ra1 {[%clk 0:00:15.7]} 41. Re2 {[%clk
0:00:17.4]} 41... d5 {[%clk 0:00:13.9]} 42. Kg2 {[%clk 0:00:17.7]} 42... g5
{[%clk 0:00:13.1]} 43. hxg5 {[%clk 0:00:17.7]} 43... hxg5 {[%clk 0:00:14]} 44.
Bd2 {[%clk 0:00:18.4]} 44... Ra2 {[%clk 0:00:13.1]} 45. Kf1 {[%clk 0:00:17.4]}
45... g4 {[%clk 0:00:13.6]} 46. Bb4 {[%clk 0:00:15]} 46... Ra4 {[%clk
0:00:12.9]} 47. Bd2 {[%clk 0:00:15]} 47... Kf5 {[%clk 0:00:13.4]} 48. Kg2 {[%clk
0:00:14.7]} 48... Ra2 {[%clk 0:00:13.4]} 49. Kf1 {[%clk 0:00:15.1]} 49... Ra1+
{[%clk 0:00:13.8]} 50. Kg2 {[%clk 0:00:15.1]} 50... Bc5 {[%clk 0:00:13.5]} 51.
Bc3 {[%clk 0:00:13]} 51... Ra3 {[%clk 0:00:13.7]} 52. Bd2 {[%clk 0:00:12]} 52...
d4 {[%clk 0:00:13.5]} 53. Be1 {[%clk 0:00:10.5]} 53... d3 {[%clk 0:00:13.7]} 54.
Rb2 {[%clk 0:00:10.2]} 54... Bd4 {[%clk 0:00:12.5]} 55. Rb1 {[%clk 0:00:04.3]}
55... Ra2 {[%clk 0:00:12.7]} 56. Rd1 {[%clk 0:00:04.7]} 56... e3 {[%clk
0:00:09.4]} 57. Rxd3 {[%clk 0:00:04.7]} 57... Ke4 {[%clk 0:00:10.2]} 58. Rb3
{[%clk 0:00:01.3]} 58... exf2 {[%clk 0:00:10.5]} 0-1

[Event "Early-Titled-Tuesday-Blitz-September-26-2023"]
[Site "Chess.com"]
[Date "2023.09.26"]
[Round "1"]
[White "TimofeevAr"]
[Black "MFatigue"]
[Result "0-1"]
[WhiteElo "2868"]
[BlackElo "2514"]
[TimeControl "180+1"]
[EndTime "8:08:13 PDT"]
[Termination "MFatigue won on time"]

1. c4 {[%clk 0:03:00.9]} 1... c5 {[%clk 0:02:59.9]} 2. Nf3 {[%clk 0:03:00.1]}
2... Nf6 {[%clk 0:03:00.1]} 3. Nc3 {[%clk 0:02:59.3]} 3... d5 {[%clk 0:03:00.6]}
4. cxd5 {[%clk 0:02:58.8]} 4... Nxd5 {[%clk 0:03:01.5]} 5. Qa4+ {[%clk 0:02:58]}
5... Nc6 {[%clk 0:02:56.1]} 6. Ne5 {[%clk 0:02:57.3]} 6... Nxc3 {[%clk
0:02:53.7]} 7. dxc3 {[%clk 0:02:56.4]} 7... Bd7 {[%clk 0:02:51.1]} 8. Nxd7
{[%clk 0:02:53.7]} 8... Qxd7 {[%clk 0:02:50.3]} 9. e4 {[%clk 0:02:51.2]} 9...
O-O-O {[%clk 0:02:41.8]} 10. Bb5 {[%clk 0:02:42]} 10... a6 {[%clk 0:02:41.5]}
11. Bxc6 {[%clk 0:02:39.9]} 11... Qxc6 {[%clk 0:02:42.4]} 12. Qxc6+ {[%clk
0:02:39.5]} 12... bxc6 {[%clk 0:02:43.3]} 13. Be3 {[%clk 0:02:38.4]} 13... e5
{[%clk 0:02:40.1]} 14. Ke2 {[%clk 0:02:37.6]} 14... f6 {[%clk 0:02:39.6]} 15. g4
{[%clk 0:02:31.4]} 15... Be7 {[%clk 0:02:36.4]} 16. h4 {[%clk 0:02:30.5]} 16...
c4 {[%clk 0:02:13.1]} 17. h5 {[%clk 0:02:29]} 17... h6 {[%clk 0:02:12.4]} 18.
Rhd1 {[%clk 0:02:23.7]} 18... Kc7 {[%clk 0:02:07.5]} 19. b3 {[%clk 0:02:19]}
19... Rxd1 {[%clk 0:02:05.2]} 20. Kxd1 {[%clk 0:02:14.4]} 20... Rd8+ {[%clk
0:02:00.5]} 21. Kc2 {[%clk 0:02:14]} 21... cxb3+ {[%clk 0:01:47.2]} 22. axb3
{[%clk 0:02:13.4]} 22... Kb7 {[%clk 0:01:47.7]} 23. b4 {[%clk 0:02:12.7]} 23...
Rc8 {[%clk 0:01:44.1]} 24. Rd1 {[%clk 0:02:11]} 24... Kc7 {[%clk 0:01:40.7]} 25.
Kb3 {[%clk 0:02:09.5]} 25... Rb8 {[%clk 0:01:31.3]} 26. Kc4 {[%clk 0:02:08.7]}
26... Rb5 {[%clk 0:01:26.6]} 27. Ra1 {[%clk 0:02:03.2]} 27... Kb7 {[%clk
0:01:27.1]} 28. Ra2 {[%clk 0:02:03.4]} 28... Bd6 {[%clk 0:01:25.6]} 29. Ra4
{[%clk 0:01:35.9]} 29... Be7 {[%clk 0:01:20.3]} 30. Ra5 {[%clk 0:01:14.9]} 30...
Rxa5 {[%clk 0:00:36.4]} 31. bxa5 {[%clk 0:01:14.5]} 31... Kc7 {[%clk 0:00:36.3]}
32. Bc5 {[%clk 0:01:12]} 32... Bd6 {[%clk 0:00:36.6]} 33. Bxd6+ {[%clk
0:01:06.3]} 33... Kxd6 {[%clk 0:00:36.8]} 34. Kb4 {[%clk 0:01:06.5]} 34... c5+
{[%clk 0:00:36.2]} 35. Kc4 {[%clk 0:01:05.7]} 35... Kc6 {[%clk 0:00:36.9]} 36.
f3 {[%clk 0:00:56.4]} 36... Kd6 {[%clk 0:00:36.8]} 37. Kd3 {[%clk 0:00:56.7]}
37... Kc6 {[%clk 0:00:34.9]} 38. c4 {[%clk 0:00:56.7]} 38... Kd6 {[%clk
0:00:34.6]} 39. Ke3 {[%clk 0:00:57]} 39... Ke6 {[%clk 0:00:34.6]} 40. Kf2 {[%clk
0:00:56.5]} 40... Kd6 {[%clk 0:00:26.9]} 41. Kg3 {[%clk 0:00:55]} 41... Ke6
{[%clk 0:00:27.3]} 42. f4 {[%clk 0:00:51.2]} 42... Kd6 {[%clk 0:00:26.4]} 43.
Kf3 {[%clk 0:00:48.1]} 43... Ke6 {[%clk 0:00:19.9]} 44. fxe5 {[%clk 0:00:47]}
44... Kxe5 {[%clk 0:00:20.4]} 45. Ke3 {[%clk 0:00:46.7]} 45... Kd6 {[%clk
0:00:19.8]} 46. Kf4 {[%clk 0:00:45.7]} 46... Ke6 {[%clk 0:00:20]} 47. e5 {[%clk
0:00:32.3]} 47... fxe5+ {[%clk 0:00:14.9]} 48. Ke4 {[%clk 0:00:32.2]} 48... Kf6
{[%clk 0:00:14.9]} 49. Kd5 {[%clk 0:00:32.3]} 49... Kg5 {[%clk 0:00:15.3]} 50.
Kxc5 {[%clk 0:00:16.8]} 50... e4 {[%clk 0:00:14.9]} 51. Kd4 {[%clk 0:00:16.9]}
51... Kf4 {[%clk 0:00:15.5]} 52. c5 {[%clk 0:00:17.1]} 52... e3 {[%clk
0:00:16.1]} 53. c6 {[%clk 0:00:09.4]} 53... e2 {[%clk 0:00:16.3]} 54. Kc5 {[%clk
0:00:06.8]} 54... e1=Q {[%clk 0:00:16.1]} 55. Kb6 {[%clk 0:00:07]} 55... Qb4+
{[%clk 0:00:14.7]} 56. Kxa6 {[%clk 0:00:07]} 56... Qb8 {[%clk 0:00:14]} 0-1